fUST/lending_fUST_20260111
["ID","MTS","AMOUNT","RATE_DAILY","PERIOD"]
[401272659,1768089042902,-303.10001603,0.00019467,2]
[401272661,1768089042912,-303.10001603,0.00019467,2]
[401272663,1768089042921,-303.10001603,0.00019656,2]
[401272665,1768089042930,-303.10001603,0.00019656,2]
[401272667,1768089042940,-454.65002405,0.00019845,4]
[401272669,1768089042950,-454.65002405,0.00019845,4]
[401272671,1768089042960,-735.0393,0.0002,4]
[401272673,1768089042970,-151.89012023,0.0002,2]
[401272675,1768089042979,-454.65002405,0.00020034,4]
[401272677,1768089042989,-454.65002405,0.00020034,4]
[401272679,1768089042999,-380.1,0.00020197,2]
[401272681,1768089043009,-454.65002405,0.00020223,4]
[401272682,1768089043019,-454.65002405,0.00020223,4]
[401272683,1768089043028,-454.65002405,0.00020412,4]
[401272684,1768089043038,-454.65002405,0.00020412,4]
[401272685,1768089043047,-2001.305979,0.00020548,2]
[401272686,1768089043058,-301.57435522,0.00020601,4]
[401272687,1768089043067,-454.65002405,0.00020601,4]
[401272688,1768089043076,-658.25561995,0.00020668,2]
[401272689,1768089043086,-1000.0,0.00021024,2]
[401272690,1768089043095,-791.0,0.00021024,2]
[401272691,1768089043104,-545.914549,0.00021918,2]
[401272692,1768089043114,-380.1,0.00022076,2]
[401272693,1768089043124,-1283.61559644,0.00022444,2]
[401272694,1768089043134,-720.61667869,0.00022668,2]
[401272695,1768089043143,-1000.0,0.00023127,10]
[401272696,1768089043152,-1000.0,0.00023127,10]
[401272697,1768089043162,-712.06243302,0.00023268,2]
[401272698,1768089043171,-380.1,0.00023955,2]
[401272699,1768089043180,-150.0,0.00024658,2]
[401272700,1768089043190,-500.0,0.00024658,2]
[401272701,1768089043200,-782.97773742,0.00024668,2]
[401272702,1768089043209,-500.0,0.00024795,2]
[401272703,1768089043218,-290.0495251,0.00024832,2]
[401272704,1768089043227,-385585.177789,0.000249,2]
[401272705,1768089043236,-500.0,0.00024932,2]
[401272706,1768089043246,-500.0,0.00025069,2]
[401272707,1768089043255,-150.1,0.00025202,2]
[401272708,1768089043265,-250.0,0.00025205,2]
[401272709,1768089043274,-500.0,0.00025206,2]
[401272710,1768089043283,-545.914549,0.00025342,2]
[401272711,1768089043292,-500.0,0.00025343,2]
[401272712,1768089043302,-1000.0,0.00025439,10]
[401272713,1768089043312,-1000.0,0.00025439,10]
[401272714,1768089043321,-579.0,0.00025439,10]
[401272715,1768089043331,-500.0,0.0002548,2]
[401272716,1768089043340,-500.0,0.00025617,2]
[401272717,1768089043349,-350.0,0.00025753,2]
[401272718,1768089043359,-250.0,0.00025754,2]
[401272719,1768089043368,-380.1,0.00025834,2]
[401272720,1768089043378,-285.4711241,0.00025973,18]
[401272721,1768089043387,-5000.0,0.00026105,2]
[401272722,1768089043396,-290.04952508,0.00026179,2]
[401272723,1768089043406,-450.0,0.00026301,2]
[401272724,1768089043415,-845.33879615,0.00026668,2]
[401272725,1768089043424,-500.0,0.000267,7]
[401272726,1768089043434,-550.0,0.00026849,2]
[401272727,1768089043444,-11484.62,0.000272,2]
[401272728,1768089043455,-700.0,0.00027397,5]
[401272729,1768089043464,-150.0,0.00027397,5]
[401272730,1768089043474,-290.04952508,0.00027526,2]
[401272731,1768089043483,-1845.46,0.000277,14]
[401272732,1768089043493,-380.1,0.00027714,3]
[401272733,1768089043503,-1283.61559644,0.00027782,2]
[401272734,1768089043513,-1000.0,0.00027983,30]
[401272735,1768089043522,-1000.0,0.00027983,30]
[401272736,1768089043531,-1000.0,0.00027983,30]
[401272737,1768089043541,-163.0,0.00028164,28]
[401272738,1768089043550,-907.69985488,0.00028668,2]
[401272739,1768089043560,-5000.0,0.00028705,2]
[401272740,1768089043569,-545.914549,0.00028767,60]
[401272741,1768089043578,-290.04952508,0.00028873,2]
[401272742,1768089043592,-180.55664476,0.00029588,3]
[401272743,1768089043602,-380.1,0.00029593,4]
[401272744,1768089043613,-210.66596428,0.00029863,5]
[401272745,1768089043624,-300.0,0.00030137,5]
[401272746,1768089043633,-290.04952508,0.0003022,2]
[401272747,1768089043642,-174.0,0.00030356,39]
[401272748,1768089043651,-258.37953721,0.00030366,2]
[401272749,1768089043661,-208.617,0.00030386,26]
[401272750,1768089043671,-258.38,0.00030494,2]
[401272751,1768089043680,-970.06091362,0.00030668,2]
[401272752,1768089043690,-1000.0,0.00030781,30]
[401272754,1768089043699,-1000.0,0.00030781,30]
[401272755,1768089043709,-1000.0,0.00030781,30]
[401272756,1768089043718,-715.0,0.00030781,30]
[401272757,1768089043727,-210.66596427,0.00030786,10]
[401272758,1768089043737,-516.35781364,0.00031006,7]
[401272759,1768089043746,-5000.0,0.00031305,2]
[401272760,1768089043756,-380.1,0.00031472,5]
[401272761,1768089043766,-290.04952508,0.00031568,2]
[401272762,1768089043776,-300.0,0.00031973,2]
[401272763,1768089043785,-300.0,0.00031973,2]
[401272764,1768089043794,-300.0,0.00031973,2]
[401272765,1768089043803,-300.0,0.00031973,2]
[401272766,1768089043813,-171.0,0.000324,120]
[401272767,1768089043823,-1032.42197235,0.00032668,2]
[401272768,1768089043832,-999.0,0.00032876,120]
[401272769,1768089043841,-184.17,0.00032877,10]
[401272770,1768089043851,-150.0,0.00032877,5]
[401272771,1768089043861,-450.0,0.00032877,5]
[401272772,1768089043871,-290.04952508,0.00032915,2]
[401272773,1768089043883,-1283.61559644,0.0003312,2]
[401272774,1768089043895,-1043344.6556,0.0003322,30]
[401272775,1768089043905,-151.0,0.0003322,31]
[401272776,1768089043915,-240.800018,0.0003322,31]
[401272777,1768089043926,-151.0,0.0003322,31]
[401272778,1768089043935,-151.0,0.0003322,31]
[401272779,1768089043946,-461.356461,0.0003322,31]
[401272780,1768089043956,-461.356461,0.0003322,31]
[401272781,1768089043966,-461.356461,0.0003322,31]
[401272782,1768089043976,-461.356461,0.0003322,31]
[401272783,1768089043986,-245.445707,0.0003322,31]
[401272784,1768089043996,-245.445707,0.0003322,31]
[401272785,1768089044005,-245.445707,0.0003322,31]
[401272786,1768089044016,-245.445707,0.0003322,31]
[401272787,1768089044025,-151.895159,0.0003322,31]
[401272788,1768089044035,-202.167956,0.0003322,31]
[401272789,1768089044044,-151.895159,0.0003322,31]
[401272790,1768089044053,-151.895159,0.0003322,31]
[401272791,1768089044063,-151.895159,0.0003322,31]
[401272792,1768089044072,-151.0,0.0003322,31]
[401272793,1768089044087,-151.366366,0.0003322,2]
[401272794,1768089044098,-151.0,0.0003322,31]
[401272795,1768089044109,-151.0,0.0003322,31]
[401272796,1768089044121,-151.0,0.0003322,31]
[401272797,1768089044133,-171.590858,0.0003322,31]
[401272798,1768089044142,-151.0,0.0003322,14]
[401272799,1768089044153,-151.0,0.0003322,31]
[401272800,1768089044163,-151.0,0.0003322,31]
[401272801,1768089044172,-380.1,0.00033351,6]
[401272802,1768089044182,-11484.62,0.000334,14]
[401272803,1768089044192,-170.0,0.00033644,62]
[401272804,1768089044201,-210.0,0.00033699,5]
[401272805,1768089044211,-1000.0,0.0003386,30]
[401272806,1768089044220,-1000.0,0.0003386,30]
[401272807,1768089044229,-1000.0,0.0003386,30]
[401272808,1768089044239,-5000.0,0.00033905,3]
[401272810,1768089044250,-999.0,0.00033972,120]
[401272811,1768089044259,-1041.66666667,0.00034,30]
[401272812,1768089044269,-399.52,0.0003422,60]
[401272813,1768089044278,-290.04952508,0.00034262,2]
[401272815,1768089044287,-399.52,0.0003432,60]
[401272816,1768089044298,-399.52,0.0003442,60]
[401272817,1768089044308,-399.52,0.0003452,60]
[401272818,1768089044318,-270.0,0.00034521,5]
[401272819,1768089044328,-399.52,0.0003462,60]
[401272820,1768089044339,-1094.78303108,0.00034668,120]
[401272821,1768089044348,-399.52,0.0003472,60]
[401272822,1768089044358,-399.52,0.0003482,60]
[401272823,1768089044367,-399.52,0.0003492,60]
[401272824,1768089044377,-399.52,0.0003502,60]
[401272825,1768089044386,-999.0,0.00035068,120]
[401272826,1768089044396,-151.0,0.0003512,14]
[401272827,1768089044406,-399.52,0.0003512,60]
[401272828,1768089044416,-312.48347739,0.0003513,2]
[401272829,1768089044425,-760.86076214,0.0003513,2]
[401272830,1768089044435,-3043.44304857,0.0003513,2]
[401272831,1768089044444,-151.0,0.00035162,2]
[401272832,1768089044562,-151.0,0.00035162,2]
[401272833,1768089044572,-151.0,0.00035162,2]
[401272834,1768089044583,-151.0,0.00035162,2]
[401272835,1768089044595,-151.0,0.00035162,2]
[401272836,1768089044604,-30000.0,0.00035162,2]
[401272837,1768089044613,-151.0,0.00035162,2]
[401272838,1768089044623,-151.0,0.00035162,2]
[401272839,1768089044632,-151.0,0.00035162,2]
[401272840,1768089044642,-151.0,0.00035162,2]
[401272841,1768089044651,-151.0,0.00035162,2]
[401272842,1768089044662,-151.0,0.00035162,2]
[401272843,1768089044671,-151.0,0.00035162,2]
[401272844,1768089044680,-151.0,0.00035162,2]
[401272845,1768089044690,-151.0,0.00035162,2]
[401272846,1768089044700,-151.0,0.00035162,2]
[401272847,1768089044710,-151.0,0.00035162,2]
[401272848,1768089044719,-151.0,0.00035162,2]
[401272849,1768089044729,-151.0,0.00035162,2]
[401272850,1768089044738,-151.0,0.00035162,2]
[401272851,1768089044747,-151.0,0.00035162,2]
[401272852,1768089044757,-399.52,0.0003522,60]
[401272853,1768089044767,-380.1,0.00035231,30]
[401272854,1768089044776,-399.52,0.0003532,60]
[401272855,1768089044786,-330.0,0.00035342,5]
[401272856,1768089044795,-399.52,0.0003542,60]
[401272857,1768089044804,-728.0,0.00035466,11]
[401272858,1768089044814,-728.0,0.0003547,11]
[401272859,1768089044823,-728.0,0.00035486,11]
[401272860,1768089044832,-160.0,0.00035492,11]
[401272861,1768089044841,-728.0,0.00035494,11]
[401272862,1768089044850,-728.0,0.000355,11]
[401272863,1768089044860,-728.0,0.00035502,11]
[401272864,1768089044869,-399.52,0.0003552,60]
[401272865,1768089044880,-427.0,0.00035543,7]
[401272866,1768089044890,-428.064,0.0003559,2]
[401272867,1768089044902,-290.04952508,0.00035609,2]
[401272868,1768089044911,-500.0,0.00035616,30]
[401272869,1768089044922,-334.34878739,0.00035616,7]
[401272870,1768089044931,-600.0,0.00035616,5]
[401272871,1768089044941,-399.52,0.0003562,60]
[401272872,1768089044950,-427.0,0.00035683,120]
[401272873,1768089044975,-428.064,0.0003569,2]
[401272874,1768089044985,-5055.88306003,0.0003571,2]
[401272875,1768089044994,-399.52,0.0003572,60]
[401272876,1768089045003,-728.0,0.00035785,11]
[401272877,1768089045013,-428.064,0.0003579,2]
[401272878,1768089045022,-728.0,0.0003579,11]
[401272879,1768089045031,-728.0,0.00035805,11]
[401272880,1768089045041,-728.0,0.00035806,11]
[401272881,1768089045051,-728.0,0.00035808,11]
[401272882,1768089045060,-728.0,0.00035812,11]
[401272883,1768089045070,-682.0,0.00035812,11]
[401272884,1768089045081,-161.0,0.00035816,11]
[401272885,1768089045091,-399.52,0.0003582,60]
[401272886,1768089045103,-728.0,0.00035822,11]
[401272887,1768089045114,-728.0,0.00035822,11]
[401272888,1768089045125,-728.0,0.00035823,11]
[401272889,1768089045135,-728.0,0.00035823,11]
[401272890,1768089045145,-427.0,0.00035839,2]
[401272891,1768089045155,-296.0,0.00035865,30]
[401272892,1768089045166,-724.0,0.00035865,30]
[401272893,1768089045175,-428.064,0.0003589,2]
[401272894,1768089045186,-1845.46,0.000359,30]
[401272895,1768089045196,-399.52,0.0003592,60]
[401272896,1768089045207,-3096772.73966657,0.00035937,4]
[401272897,1768089045216,-5058.79910613,0.00035974,53]
[401272898,1768089045227,-428.064,0.0003599,2]
[401272899,1768089045237,-377.1655679,0.00036,30]
[401272900,1768089045249,-399.52,0.0003602,60]
[401272901,1768089045260,-428.064,0.0003609,2]
[401272902,1768089045269,-728.0,0.00036106,11]
[401272903,1768089045279,-2496.11668606,0.00036109,2]
[401272904,1768089045288,-728.0,0.0003611,11]
[401272905,1768089045297,-399.648,0.0003612,60]
[401272906,1768089045306,-999.0,0.00036164,120]
[401272907,1768089045316,-500.0,0.00036164,30]
[401272908,1768089045326,-180.020001,0.00036164,5]
[401272909,1768089045335,-428.064,0.0003619,2]
[401272910,1768089045345,-2496.11668606,0.00036243,2]
[401272911,1768089045355,-428.064,0.0003629,2]
[401272912,1768089045364,-160.0,0.00036425,11]
[401272913,1768089045375,-728.0,0.00036426,11]
[401272914,1768089045384,-728.0,0.0003643,11]
[401272915,1768089045394,-2496.11668606,0.00036439,2]
[401272916,1768089045404,-728.0,0.00036448,11]
[401272917,1768089045414,-728.0,0.00036455,11]
[401272918,1768089045424,-728.0,0.00036456,11]
[401272919,1768089045434,-5000.0,0.00036505,3]
[401272920,1768089045443,-11484.62,0.000366,14]
[401272921,1768089045452,-10000.0,0.00036612,2]
[401272922,1768089045462,-3068.09709903,0.00036622,2]
[401272923,1768089045472,-1157.14408981,0.00036668,120]
[401272924,1768089045482,-507.63257534,0.00036712,30]
[401272925,1768089045491,-500.0,0.00036712,30]
[401272926,1768089045500,-500.0,0.00036712,30]
[401272927,1768089045510,-500.0,0.00036712,30]
[401272928,1768089045519,-506.59663788,0.00036712,30]
[401272929,1768089045528,-247.29893565,0.00036712,30]
[401272930,1768089045538,-238.58636082,0.00036712,30]
[401272931,1768089045547,-502.59646972,0.00036712,30]
[401272932,1768089045558,-209.54240035,0.00036712,30]
[401272933,1768089045568,-504.16898208,0.00036712,30]
[401272934,1768089045577,-579.98652351,0.00036712,30]
[401272935,1768089045602,-504.05122282,0.00036712,30]
[401272936,1768089045613,-467.71800202,0.00036712,30]
[401272937,1768089045625,-222.47283304,0.00036712,30]
[401272939,1768089045635,-500.0,0.00036712,30]
[401272940,1768089045646,-167.71962131,0.00036712,30]
[401272941,1768089045662,-500.0,0.00036712,30]
[401272942,1768089045672,-516.29475273,0.00036712,30]
[401272943,1768089045684,-288.16366655,0.00036712,30]
[401272944,1768089045694,-570.97351923,0.00036712,30]
[401272945,1768089045704,-508.89286764,0.00036712,30]
[401272946,1768089045713,-358.64493723,0.00036712,30]
[401272947,1768089045723,-521.57977435,0.00036712,30]
[401272948,1768089045732,-500.0,0.00036712,30]
[401272949,1768089045742,-500.66595312,0.00036712,30]
[401272950,1768089045752,-500.0,0.00036712,30]
[401272951,1768089045762,-502.74272477,0.00036712,30]
[401272952,1768089045772,-500.0,0.00036712,30]
[401272953,1768089045782,-540.05543538,0.00036712,30]
[401272954,1768089045791,-497.82020642,0.00036712,30]
[401272955,1768089045802,-500.0,0.00036712,30]
[401272956,1768089045815,-500.0,0.00036712,30]
[401272957,1768089045825,-500.0,0.00036712,30]
[401272958,1768089045837,-500.0,0.00036712,30]
[401272959,1768089045847,-500.17912256,0.00036712,30]
[401272960,1768089045858,-500.0,0.00036712,30]
[401272961,1768089045867,-500.0,0.00036712,30]
[401272962,1768089045877,-500.0,0.00036712,30]
[401272963,1768089045887,-500.0,0.00036712,30]
[401272964,1768089045897,-500.0,0.00036712,30]
[401272965,1768089045908,-500.0,0.00036712,30]
[401272966,1768089045918,-500.0,0.00036712,30]
[401272967,1768089045928,-500.0,0.00036712,30]
[401272968,1768089045938,-500.0,0.00036712,30]
[401272969,1768089045948,-312.66110017,0.00036712,30]
[401272970,1768089045958,-500.0,0.00036712,2]
[401272971,1768089045967,-500.0,0.00036712,2]
[401272972,1768089045977,-600.91842016,0.00036712,2]
[401272973,1768089045987,-500.0,0.00036712,30]
[401272974,1768089045997,-500.0,0.00036712,30]
[401272975,1768089046009,-500.0,0.00036712,30]
[401272976,1768089046019,-500.0,0.00036712,30]
[401272977,1768089046030,-500.0,0.00036712,30]
[401272978,1768089046042,-508.7194393,0.00036712,30]
[401272980,1768089046052,-163.471192,0.00036712,31]
[401272981,1768089046064,-151.0,0.00036712,31]
[401272982,1768089046073,-508.66794221,0.00036712,30]
[401272983,1768089046083,-259.2551717,0.00036712,30]
[401272984,1768089046092,-536.12714614,0.00036712,30]
[401272985,1768089046103,-507.80127239,0.00036712,30]
[401272986,1768089046114,-524.56766905,0.00036712,30]
[401272987,1768089046125,-502.5337113,0.00036712,30]
[401272988,1768089046135,-507.03681344,0.00036712,30]
[401272989,1768089046145,-530.10481724,0.00036712,30]
[401272990,1768089046155,-501.97462233,0.00036712,30]
[401272991,1768089046167,-527.48006383,0.00036712,30]
[401272992,1768089046177,-500.0,0.00036712,30]
[401272993,1768089046187,-500.0,0.00036712,30]
[401272994,1768089046197,-500.0,0.00036712,30]
[401272995,1768089046208,-500.0,0.00036712,30]
[401272996,1768089046219,-500.0,0.00036712,30]
[401272997,1768089046229,-500.0,0.00036712,30]
[401272998,1768089046239,-500.0,0.00036712,30]
[401273000,1768089046249,-500.0,0.00036712,30]
[401273001,1768089046258,-293.31572516,0.00036712,30]
[401273002,1768089046268,-516.10438767,0.00036712,30]
[401273003,1768089046278,-593.7873052,0.00036712,30]
[401273004,1768089046288,-498.14054854,0.00036712,30]
[401273005,1768089046298,-502.69735229,0.00036712,30]
[401273006,1768089046307,-537.13184528,0.00036712,30]
[401273007,1768089046318,-151.0,0.00036712,31]
[401273008,1768089046327,-500.0,0.00036712,2]
[401273009,1768089046337,-500.0,0.00036712,2]
[401273010,1768089046347,-500.0,0.00036712,2]
[401273011,1768089046357,-500.0,0.00036712,2]
[401273012,1768089046367,-500.0,0.00036712,2]
[401273013,1768089046377,-500.0,0.00036712,2]
[401273014,1768089046387,-151.0,0.00036712,31]
[401273015,1768089046397,-500.0,0.00036712,2]
[401273016,1768089046407,-309.3542792,0.00036712,2]
[401273017,1768089046417,-600.27321135,0.00036712,30]
[401273018,1768089046431,-508.9699297,0.00036712,30]
[401273019,1768089046441,-151.0,0.00036712,31]
[401273020,1768089046450,-522.13898206,0.00036712,30]
[401273021,1768089046460,-500.0,0.00036712,30]
[401273022,1768089046469,-500.0,0.00036712,30]
[401273023,1768089046480,-500.0,0.00036712,30]
[401273024,1768089046490,-500.0,0.00036712,30]
[401273025,1768089046499,-500.0,0.00036712,30]
[401273026,1768089046509,-500.0,0.00036712,30]
[401273027,1768089046518,-166.15880997,0.00036712,30]
[401273029,1768089046528,-603.41244576,0.00036712,30]
[401273030,1768089046537,-535.19163838,0.00036712,30]
[401273031,1768089046547,-503.08173337,0.00036712,30]
[401273032,1768089046556,-526.6387612,0.00036712,30]
[401273033,1768089046567,-500.0,0.00036712,30]
[401273034,1768089046577,-500.0,0.00036712,30]
[401273035,1768089046591,-500.0,0.00036712,30]
[401273036,1768089046600,-500.0,0.00036712,30]
[401273037,1768089046610,-500.0,0.00036712,30]
[401273038,1768089046619,-500.0,0.00036712,30]
[401273039,1768089046630,-500.0,0.00036712,30]
[401273040,1768089046639,-500.0,0.00036712,30]
[401273041,1768089046648,-500.0,0.00036712,30]
[401273042,1768089046659,-520.918343,0.00036712,30]
[401273043,1768089046668,-500.0,0.00036712,30]
[401273044,1768089046678,-532.51814572,0.00036712,30]
[401273045,1768089046687,-431.8588478,0.00036712,30]
[401273046,1768089046697,-505.81690388,0.00036712,30]
[401273047,1768089046706,-504.72849029,0.00036712,30]
[401273048,1768089046715,-337.12628961,0.00036712,30]
[401273049,1768089046725,-508.05085412,0.00036712,30]
[401273050,1768089046734,-500.0,0.00036712,30]
[401273051,1768089046743,-505.62792653,0.00036712,30]
[401273052,1768089046753,-500.0,0.00036712,2]
[401273053,1768089046763,-500.0,0.00036712,2]
[401273054,1768089046773,-500.0,0.00036712,2]
[401273055,1768089046783,-500.0,0.00036712,2]
[401273056,1768089046793,-500.0,0.00036712,2]
[401273057,1768089046802,-500.0,0.00036712,2]
[401273058,1768089046812,-500.0,0.00036712,2]
[401273059,1768089046821,-500.0,0.00036712,2]
[401273060,1768089046831,-500.0,0.00036712,2]
[401273061,1768089046840,-500.0,0.00036712,2]
[401273062,1768089046849,-500.0,0.00036712,2]
[401273063,1768089046859,-500.0,0.00036712,2]
[401273064,1768089046868,-516.96434315,0.00036712,30]
[401273065,1768089046879,-500.0,0.00036712,2]
[401273066,1768089046889,-500.0,0.00036712,2]
[401273067,1768089046899,-500.0,0.00036712,2]
[401273068,1768089046908,-500.0,0.00036712,2]
[401273069,1768089046920,-500.0,0.00036712,2]
[401273070,1768089046931,-623.16388011,0.00036712,2]
[401273071,1768089046941,-500.47158025,0.00036712,30]
[401273072,1768089046950,-535.05587433,0.00036712,30]
[401273073,1768089046959,-514.03234991,0.00036712,30]
[401273074,1768089046969,-500.0,0.00036712,30]
[401273075,1768089046978,-265.85827817,0.00036712,30]
[401273076,1768089046989,-502.91233106,0.00036712,30]
[401273077,1768089046998,-506.86710627,0.00036712,30]
[401273078,1768089047008,-151.0,0.00036712,31]
[401273079,1768089047017,-576.37913033,0.00036712,30]
[401273080,1768089047029,-542.99461457,0.00036712,30]
[401273081,1768089047039,-500.0,0.00036712,30]
[401273082,1768089047049,-502.70071408,0.00036712,30]
[401273083,1768089047059,-540.54333116,0.00036712,30]
[401273084,1768089047068,-501.75806414,0.00036712,30]
[401273085,1768089047078,-503.2619597,0.00036712,30]
[401273086,1768089047088,-151.0,0.00036712,28]
[401273087,1768089047097,-151.0,0.00036712,28]
[401273088,1768089047107,-502.15565883,0.00036712,30]
[401273089,1768089047116,-313.8297347,0.00036712,30]
[401273090,1768089047126,-315.18853,0.00036712,31]
[401273091,1768089047240,-501.89111587,0.00036712,30]
[401273092,1768089047260,-567.48725532,0.00036712,30]
[401273093,1768089047270,-315.18853,0.00036712,31]
[401273094,1768089047279,-315.18853,0.00036712,31]
[401273095,1768089047288,-502.66091755,0.00036712,30]
[401273096,1768089047298,-315.18853,0.00036712,31]
[401273097,1768089047307,-503.06777824,0.00036712,30]
[401273098,1768089047317,-526.00258127,0.00036712,30]
[401273099,1768089047326,-514.56204005,0.00036712,30]
[401273100,1768089047336,-500.0,0.00036712,30]
[401273101,1768089047345,-151.0,0.00036712,31]
[401273102,1768089047354,-151.0,0.00036712,31]
[401273103,1768089047364,-151.0,0.00036712,31]
[401273104,1768089047373,-151.0,0.00036712,31]
[401273105,1768089047382,-502.23705915,0.00036712,30]
[401273106,1768089047392,-2479.36,0.00036712,30]
[401273107,1768089047402,-2479.36,0.00036712,30]
[401273108,1768089047411,-2479.36,0.00036712,30]
[401273109,1768089047421,-2479.36,0.00036712,30]
[401273110,1768089047430,-2479.36,0.00036712,30]
[401273111,1768089047439,-2479.36,0.00036712,30]
[401273112,1768089047448,-2479.36,0.00036712,30]
[401273113,1768089047457,-2479.36,0.00036712,30]
[401273114,1768089047466,-2479.36,0.00036712,30]
[401273115,1768089047475,-2479.36,0.00036712,30]
[401273116,1768089047485,-507.24783231,0.00036712,30]
[401273117,1768089047494,-2479.36,0.00036712,30]
[401273118,1768089047503,-2479.36,0.00036712,30]
[401273119,1768089047513,-2479.36,0.00036712,30]
[401273120,1768089047523,-2479.36,0.00036712,30]
[401273121,1768089047533,-2479.36,0.00036712,30]
[401273122,1768089047542,-2479.36,0.00036712,30]
[401273123,1768089047551,-2479.36,0.00036712,30]
[401273124,1768089047560,-2479.36,0.00036712,30]
[401273125,1768089047570,-2479.36,0.00036712,30]
[401273126,1768089047580,-2479.36,0.00036712,30]
[401273127,1768089047593,-2479.36,0.00036712,30]
[401273128,1768089047602,-2479.36,0.00036712,30]
[401273129,1768089047611,-2479.36,0.00036712,30]
[401273130,1768089047620,-508.03333953,0.00036712,30]
[401273131,1768089047630,-2479.42,0.00036712,30]
[401273132,1768089047640,-505.46772079,0.00036712,30]
[401273133,1768089047649,-506.12528413,0.00036712,30]
[401273134,1768089047659,-501.02569077,0.00036712,30]
[401273135,1768089047669,-16880.2,0.00036712,30]
[401273136,1768089047678,-16880.2,0.00036712,30]
[401273137,1768089047687,-16880.2,0.00036712,30]
[401273138,1768089047696,-16880.2,0.00036712,30]
[401273139,1768089047705,-16880.2,0.00036712,30]
[401273140,1768089047714,-16880.2,0.00036712,30]
[401273141,1768089047723,-16880.2,0.00036712,30]
[401273142,1768089047732,-514.50960578,0.00036712,30]
[401273143,1768089047742,-16880.2,0.00036712,30]
[401273144,1768089047751,-16880.2,0.00036712,30]
[401273145,1768089047760,-16880.2,0.00036712,30]
[401273146,1768089047769,-160.29273,0.00036712,31]
[401273147,1768089047779,-16880.2,0.00036712,30]
[401273148,1768089047788,-16880.2,0.00036712,30]
[401273149,1768089047797,-16880.2,0.00036712,30]
[401273150,1768089047807,-16880.2,0.00036712,30]
[401273151,1768089047817,-16880.2,0.00036712,30]
[401273152,1768089047826,-16880.2,0.00036712,30]
[401273153,1768089047835,-16880.2,0.00036712,30]
[401273154,1768089047845,-16880.2,0.00036712,30]
[401273155,1768089047854,-16880.2,0.00036712,30]
[401273156,1768089047864,-16880.2,0.00036712,30]
[401273157,1768089047873,-16880.2,0.00036712,30]
[401273158,1768089047883,-16880.2,0.00036712,30]
[401273159,1768089047892,-16880.2,0.00036712,30]
[401273160,1768089047906,-16880.27659401,0.00036712,30]
[401273161,1768089047918,-508.62032327,0.00036712,30]
[401273162,1768089047927,-534.50551265,0.00036712,30]
[401273163,1768089047937,-4887.27,0.00036712,30]
[401273164,1768089047946,-4887.27,0.00036712,30]
[401273165,1768089047956,-4887.27,0.00036712,30]
[401273166,1768089047965,-510.91021208,0.00036712,30]
[401273167,1768089047975,-4887.27,0.00036712,30]
[401273168,1768089047984,-4887.27,0.00036712,30]
[401273169,1768089047994,-4887.27,0.00036712,30]
[401273170,1768089048003,-4887.27,0.00036712,30]
[401273171,1768089048013,-4887.27,0.00036712,30]
[401273172,1768089048022,-609.31321311,0.00036712,30]
[401273173,1768089048033,-4887.27,0.00036712,30]
[401273174,1768089048043,-4887.27,0.00036712,30]
[401273175,1768089048053,-4887.27,0.00036712,30]
[401273176,1768089048062,-4887.27,0.00036712,30]